lending/lending_fUSD_20240510
["ID","MTS","AMOUNT","RATE_DAILY","PERIOD"]
[326767516,1715337052189,-500.0,0.00027397,4]
[326767517,1715337052201,-500.0,0.00027397,4]
[326767518,1715337052210,-501.93005723,0.00027397,4]
[326767519,1715337052219,-562.13,0.00027397,4]
[326767520,1715337052228,-500.0,0.00027397,4]
[326767521,1715337052237,-502.23625477,0.00027397,4]
[326767522,1715337052247,-150.0,0.00027397,4]
[326767523,1715337052256,-500.0,0.00027397,4]
[326767524,1715337052266,-820.55,0.00027397,4]
[326767525,1715337052275,-500.0,0.00027397,4]
[326767526,1715337052285,-504.88499366,0.00027397,4]
[326767527,1715337052294,-500.0,0.00027397,4]
[326767528,1715337052303,-500.0,0.00027397,4]
[326767529,1715337052312,-507.32955183,0.00027397,4]
[326767530,1715337052322,-501.65,0.00027397,4]
[326767531,1715337052331,-500.0,0.00027397,4]
[326767532,1715337052340,-539.09,0.00027397,4]
[326767533,1715337052349,-541.10507872,0.00027397,4]
[326767534,1715337052358,-500.0,0.00027397,4]
[326767535,1715337052367,-500.0,0.00027397,4]
[326767536,1715337052376,-925.25,0.00027397,4]
[326767537,1715337052385,-500.0,0.00027397,4]
[326767538,1715337052395,-500.0,0.00027397,4]
[326767539,1715337052404,-500.0,0.00027397,4]
[326767540,1715337052413,-500.0,0.00027397,4]
[326767541,1715337052422,-830.57,0.00027397,4]
[326767542,1715337052431,-500.0,0.00027397,4]
[326767543,1715337052441,-505.09285017,0.00027397,4]
[326767544,1715337052450,-841.83,0.00027397,4]
[326767545,1715337052459,-500.0,0.00027397,4]
[326767546,1715337052469,-500.0,0.00027397,4]
[326767547,1715337052478,-506.1279517,0.00027397,4]
[326767548,1715337052488,-517.11,0.00027397,4]
[326767549,1715337052497,-500.0,0.00027397,4]
[326767550,1715337052506,-612.56,0.00027397,4]
[326767551,1715337052515,-505.34765878,0.00027397,4]
[326767552,1715337052525,-500.0,0.00027397,4]
[326767553,1715337052534,-500.0,0.00027397,4]
[326767554,1715337052543,-500.0,0.00027397,4]
[326767555,1715337052552,-500.0,0.00027397,4]
[326767556,1715337052561,-500.0,0.00027397,4]
[326767557,1715337052570,-544.59,0.00027397,4]
[326767558,1715337052579,-505.36132974,0.00027397,4]
[326767559,1715337052589,-585.55,0.00027397,4]
[326767560,1715337052599,-507.30867942,0.00027397,4]
[326767561,1715337052608,-506.55546309,0.00027397,4]
[326767562,1715337052617,-593.45,0.00027397,4]
[326767563,1715337052627,-507.3452282,0.00027397,4]
[326767564,1715337052636,-511.59238288,0.00027397,4]
[326767565,1715337052645,-505.4422141,0.00027397,4]
[326767566,1715337052655,-500.0,0.00027397,4]
[326767567,1715337052664,-500.0,0.00027397,4]
[326767568,1715337052673,-500.0,0.00027397,4]
[326767569,1715337052682,-500.0,0.00027397,4]
[326767570,1715337052692,-515.43,0.00027397,4]
[326767571,1715337052701,-500.0,0.00027397,4]
[326767572,1715337052711,-500.0,0.00027397,4]
[326767573,1715337052720,-500.0,0.00027397,4]
[326767574,1715337052736,-910.95,0.00027397,4]
[326767575,1715337052746,-203.45370121,0.00027397,4]
[326767576,1715337052756,-603.81283432,0.00027397,4]
[326767577,1715337052766,-518.12836981,0.00027397,4]
[326767578,1715337052775,-500.0,0.00027397,4]
[326767579,1715337052785,-825.64,0.00027397,4]
[326767580,1715337052795,-500.0,0.00027397,4]
[326767581,1715337052805,-510.24462738,0.00027397,4]
[326767582,1715337052817,-580.76,0.00027397,4]
[326767583,1715337052826,-511.60881142,0.00027397,4]
[326767584,1715337052835,-500.0,0.00027397,4]
[326767585,1715337052844,-512.99178376,0.00027397,4]
[326767586,1715337052854,-500.0,0.00027397,4]
[326767587,1715337052863,-500.0,0.00027397,4]
[326767588,1715337052873,-500.0,0.00027397,4]
[326767589,1715337052883,-500.0,0.00027397,4]
[326767590,1715337052892,-507.02305017,0.00027397,4]
[326767591,1715337052902,-505.92044811,0.00027397,4]
[326767592,1715337052911,-507.106307,0.00027397,4]
[326767593,1715337052920,-529.86,0.00027397,12]
[326767594,1715337052929,-500.0,0.00027397,4]
[326767595,1715337052938,-508.34929145,0.00027397,4]
[326767596,1715337052947,-508.12229426,0.00027397,4]
[326767597,1715337052956,-500.0,0.00027397,4]
[326767598,1715337052965,-558.23,0.00027397,4]
[326767599,1715337052974,-302.76068367,0.00027397,4]
[326767600,1715337052984,-512.87249544,0.00027397,4]
[326767601,1715337052993,-515.5188277,0.00027397,4]
[326767602,1715337053002,-504.83949814,0.00027397,4]
[326767603,1715337053011,-509.37928177,0.00027397,4]
[326767604,1715337053020,-500.0,0.00027397,4]
[326767605,1715337053029,-500.0,0.00027397,4]
[326767606,1715337053039,-500.0,0.00027397,4]
[326767607,1715337053048,-502.20038114,0.00027397,4]
[326767608,1715337053058,-509.53222163,0.00027397,4]
[326767609,1715337053068,-500.0,0.00027397,4]
[326767610,1715337053077,-503.6434125,0.00027397,4]
[326767611,1715337053087,-501.69359157,0.00027397,4]
[326767612,1715337053096,-529.28774275,0.00027397,4]
[326767613,1715337053105,-500.0,0.00027397,4]
[326767614,1715337053116,-500.0,0.00027397,4]
[326767615,1715337053126,-500.0,0.00027397,4]
[326767616,1715337053137,-211.06386235,0.00027397,4]
[326767617,1715337053146,-500.0,0.00027397,4]
[326767618,1715337053155,-500.0,0.00027397,4]
[326767619,1715337053164,-504.94039061,0.00027397,4]
[326767620,1715337053173,-509.61953659,0.00027397,4]
[326767621,1715337053183,-366.10324802,0.00027397,4]
[326767622,1715337053192,-500.0,0.00027397,4]
[326767623,1715337053201,-512.34206111,0.00027397,4]
[326767624,1715337053210,-500.0,0.00027397,4]
[326767625,1715337053219,-500.0,0.00027397,4]
[326767626,1715337053228,-1708.63,0.00027397,4]
[326767627,1715337053237,-500.0,0.00027397,4]
[326767628,1715337053246,-500.0,0.00027397,4]
[326767629,1715337053255,-300.0,0.00027397,2]
[326767630,1715337053264,-507.13906452,0.00027397,4]
[326767631,1715337053273,-510.95181185,0.00027397,4]
[326767632,1715337053283,-846.28,0.00027397,4]
[326767633,1715337053292,-500.0,0.00027397,4]
[326767634,1715337053301,-500.0,0.00027397,2]
[326767635,1715337053310,-500.02,0.00027397,4]
[326767636,1715337053320,-864.33,0.00027397,4]
[326767637,1715337053330,-500.0,0.00027397,4]
[326767638,1715337053339,-500.0,0.00027397,4]
[326767639,1715337053348,-500.0,0.00027397,4]
[326767640,1715337053358,-575.32278729,0.00027397,4]
[326767641,1715337053367,-500.0,0.00027397,4]
[326767642,1715337053376,-703.88,0.00027397,4]
[326767643,1715337053385,-532.52460819,0.00027397,4]
[326767644,1715337053395,-500.0,0.00027397,4]
[326767645,1715337053404,-571.32,0.00027397,4]
[326767646,1715337053414,-1287.64,0.00027397,4]
[326767647,1715337053423,-510.99192413,0.00027397,4]
[326767648,1715337053432,-1617.59,0.00027397,4]
[326767649,1715337053441,-500.0,0.00027397,4]
[326767650,1715337053450,-500.0,0.00027397,4]
[326767651,1715337053459,-1131.29,0.00027397,4]
[326767652,1715337053468,-500.0,0.00027397,4]
[326767653,1715337053478,-508.50618957,0.00027397,4]
[326767654,1715337053487,-1015.05086631,0.00027397,4]
[326767655,1715337053496,-514.61228673,0.00027397,4]
[326767656,1715337053506,-500.0,0.00027397,2]
[326767657,1715337053515,-500.0,0.00027397,4]
[326767658,1715337053524,-667.88,0.00027397,4]
[326767659,1715337053534,-2000.0,0.00027397,4]
[326767660,1715337053544,-500.0,0.00027397,4]
[326767661,1715337053553,-500.0,0.00027397,4]
[326767662,1715337053562,-657.3,0.00027397,4]
[326767663,1715337053572,-500.0,0.00027397,4]
[326767664,1715337053581,-517.28468883,0.00027397,4]
[326767665,1715337053591,-500.0,0.00027397,4]
[326767666,1715337053600,-663.42,0.00027397,4]
[326767667,1715337053610,-914.08,0.00027397,4]
[326767668,1715337053620,-159.08164,0.00027397,7]
[326767669,1715337053629,-549.99,0.00027397,4]
[326767670,1715337053638,-500.0,0.00027397,4]
[326767671,1715337053648,-500.0,0.00027397,4]
[326767672,1715337053658,-500.0,0.00027397,4]
[326767673,1715337053666,-529.9556166,0.00027397,4]
[326767674,1715337053675,-500.0,0.00027397,4]
[326767675,1715337053684,-500.0,0.00027397,4]
[326767676,1715337053694,-1140.2,0.00027397,4]
[326767677,1715337053702,-500.0,0.00027397,4]
[326767678,1715337053711,-921.94,0.00027397,4]
[326767679,1715337053720,-848.69,0.00027397,4]
[326767680,1715337053731,-500.0,0.00027397,4]
[326767681,1715337053742,-511.91553616,0.00027397,4]
[326767682,1715337053751,-500.0,0.00027397,4]
[326767683,1715337053760,-1202.99,0.00027397,4]
[326767684,1715337053769,-546.66,0.00027397,4]
[326767685,1715337053781,-500.0,0.00027397,4]
[326767686,1715337053790,-500.0,0.00027397,4]
[326767687,1715337053799,-500.0,0.00027397,4]
[326767688,1715337053808,-505.62355185,0.00027397,4]
[326767689,1715337053818,-1089.2,0.00027397,4]
[326767690,1715337053828,-504.96999437,0.00027397,4]
[326767691,1715337053837,-500.0,0.00027397,4]
[326767692,1715337053846,-986.23,0.00027397,4]
[326767693,1715337053855,-500.0,0.00027397,4]
[326767694,1715337053864,-500.0,0.00027397,4]
[326767695,1715337053873,-969.6,0.00027397,4]
[326767696,1715337053882,-401.30921672,0.00027397,4]
[326767697,1715337053891,-553.41,0.00027397,4]
[326767698,1715337053900,-1805.03,0.00027397,4]
[326767699,1715337053909,-500.0,0.00027397,4]
[326767700,1715337053918,-853.17,0.00027397,4]
[326767701,1715337053928,-1824.82,0.00027397,4]
[326767702,1715337053936,-2231.16,0.00027397,4]
[326767703,1715337053945,-512.25903659,0.00027397,4]
[326767704,1715337053954,-500.0,0.00027397,4]
[326767705,1715337053964,-1325.64,0.00027397,4]
[326767706,1715337053972,-2170.9,0.00027397,4]
[326767707,1715337053981,-500.0,0.00027397,4]
[326767708,1715337053991,-1842.24,0.00027397,4]
[326767709,1715337054000,-500.0,0.00027397,4]
[326767710,1715337054009,-500.0,0.00027397,4]
[326767711,1715337054018,-500.0,0.00027397,4]
[326767712,1715337054027,-513.9298535,0.00027397,4]
[326767713,1715337054037,-500.0,0.00027397,4]
[326767714,1715337054046,-520.54610118,0.00027397,4]
[326767715,1715337054055,-500.0,0.00027397,4]
[326767716,1715337054069,-237.758008,0.00027397,7]
[326767717,1715337054079,-237.758008,0.00027397,7]
[326767718,1715337054087,-1838.93,0.00027397,4]
[326767719,1715337054097,-237.758008,0.00027397,7]
[326767720,1715337054106,-237.758008,0.00027397,7]
[326767721,1715337054115,-500.0,0.00027397,4]
[326767722,1715337054124,-237.758008,0.00027397,7]
[326767723,1715337054134,-929.05,0.00027397,4]
[326767724,1715337054143,-507.5511461,0.00027397,4]
[326767725,1715337054152,-237.758008,0.00027397,7]
[326767726,1715337054162,-500.0,0.00027397,4]
[326767727,1715337054171,-237.758008,0.00027397,7]
[326767728,1715337054180,-237.758008,0.00027397,7]
[326767729,1715337054192,-1798.72,0.00027397,4]
[326767730,1715337054201,-237.758008,0.00027397,7]
[326767731,1715337054210,-500.0,0.00027397,4]
[326767732,1715337054219,-237.758014,0.00027397,7]
[326767733,1715337054229,-500.0,0.00027397,4]
[326767734,1715337054238,-500.0,0.00027397,4]
[326767735,1715337054247,-500.0,0.00027397,4]
[326767736,1715337054256,-710.94,0.00027397,4]
[326767737,1715337054266,-500.0,0.00027397,4]
[326767738,1715337054275,-839.31,0.00027397,4]
[326767739,1715337054285,-1604.99,0.00027397,4]
[326767740,1715337054295,-548.39,0.00027397,4]
[326767741,1715337054304,-13040.24167655,0.00027397,2]
[326767742,1715337054314,-504.7321786,0.00027397,4]
[326767743,1715337054324,-504.90083779,0.00027397,4]
[326767744,1715337054334,-1548.89,0.00027397,4]
[326767745,1715337054343,-500.0,0.00027397,4]
[326767746,1715337054353,-1022.11,0.00027397,4]
[326767747,1715337054362,-518.9473599,0.00027397,4]
[326767748,1715337054372,-507.96818606,0.00027397,4]
[326767749,1715337054381,-516.81952712,0.00027397,4]
[326767750,1715337054392,-1057.83,0.00027397,4]
[326767751,1715337054402,-900.06,0.00027397,4]
[326767752,1715337054527,-1109.12,0.00027397,4]
[326767753,1715337054538,-1228.93,0.00027397,4]
[326767754,1715337054547,-522.15116562,0.00027397,4]
[326767755,1715337054557,-511.20860405,0.00027397,4]
[326767756,1715337054567,-500.0,0.00027397,4]
[326767757,1715337054577,-803.8,0.00027397,4]
[326767758,1715337054586,-500.0,0.00027397,4]
[326767759,1715337054596,-290.78352907,0.00027397,4]
[326767760,1715337054607,-500.0,0.00027397,4]
[326767761,1715337054617,-506.02721519,0.00027397,4]
[326767762,1715337054627,-500.0,0.00027397,4]
[326767763,1715337054637,-1477.95,0.00027397,4]
[326767764,1715337054647,-500.0,0.00027397,4]
[326767765,1715337054657,-504.65344827,0.00027397,4]
[326767766,1715337054667,-668.15,0.00027397,4]
[326767767,1715337054678,-2468.51,0.00027397,4]
[326767768,1715337054688,-500.0,0.00027397,4]
[326767769,1715337054698,-505.3930672,0.00027397,4]
[326767770,1715337054707,-603.38,0.00027397,4]
[326767771,1715337054717,-635.06,0.00027397,4]
[326767772,1715337054727,-508.84264296,0.00027397,4]
[326767773,1715337054741,-500.0,0.00027397,4]
[326767774,1715337054751,-500.0,0.00027397,4]
[326767775,1715337054760,-614.53,0.00027397,4]
[326767776,1715337054771,-540.93166836,0.00027397,4]
[326767777,1715337054781,-979.22,0.00027397,4]
[326767778,1715337054791,-1059.27,0.00027397,4]
[326767779,1715337054801,-539.69179806,0.00027397,4]
[326767780,1715337054811,-500.0,0.00027397,4]
[326767781,1715337054821,-2196.83,0.00027397,4]
[326767782,1715337054831,-740.16,0.00027397,4]
[326767783,1715337054840,-500.0,0.00027397,4]
[326767784,1715337054850,-500.0,0.00027397,4]
[326767785,1715337054859,-500.0,0.00027397,4]
[326767786,1715337054869,-500.0,0.00027397,4]
[326767787,1715337054879,-500.0,0.00027397,4]
[326767788,1715337054889,-655.65,0.00027397,4]
[326767789,1715337054899,-500.0,0.00027397,4]
[326767790,1715337054908,-2368.43,0.00027397,4]
[326767791,1715337054918,-736.88,0.00027397,4]
[326767792,1715337054928,-500.0,0.00027397,4]
[326767793,1715337054937,-500.0,0.00027397,4]
[326767794,1715337054947,-1569.16,0.00027397,4]
[326767795,1715337054957,-169.51676736,0.00027397,4]
[326767796,1715337054966,-500.0,0.00027397,4]
[326767797,1715337054975,-515.74612891,0.00027397,4]
[326767798,1715337054985,-1470.63,0.00027397,4]
[326767799,1715337054994,-1252.58,0.00027397,4]
[326767800,1715337055004,-570.07,0.00027397,4]
[326767801,1715337055013,-450.89688275,0.00027397,4]
[326767802,1715337055023,-517.02746186,0.00027397,4]
[326767803,1715337055034,-500.0,0.00027397,4]
[326767804,1715337055044,-500.0,0.00027397,4]
[326767805,1715337055053,-907.39,0.00027397,4]
[326767806,1715337055063,-514.44778859,0.00027397,4]
[326767807,1715337055072,-514.19569195,0.00027397,4]
[326767808,1715337055081,-521.44700409,0.00027397,4]
[326767809,1715337055090,-500.0,0.00027397,4]
[326767810,1715337055101,-502.67174351,0.00027397,4]
[326767811,1715337055110,-500.0,0.00027397,4]
[326767812,1715337055120,-874.53,0.00027397,4]
[326767813,1715337055129,-868.45,0.00027397,4]
[326767814,1715337055138,-2467.22,0.00027397,4]
[326767815,1715337055147,-500.0,0.00027397,4]
[326767816,1715337055157,-500.0,0.00027397,4]
[326767817,1715337055167,-1740.21,0.00027397,4]
[326767818,1715337055176,-645.14,0.00027397,4]
[326767819,1715337055186,-712.69,0.00027397,4]
[326767820,1715337055195,-1006.83,0.00027397,4]
[326767821,1715337055205,-245.775512,0.00027397,7]
[326767822,1715337055214,-1662.43,0.00027397,4]
[326767823,1715337055223,-245.775512,0.00027397,7]
[326767824,1715337055233,-245.775512,0.00027397,7]
[326767825,1715337055243,-245.775512,0.00027397,7]
[326767826,1715337055252,-556.39267339,0.00027397,4]
[326767827,1715337055262,-802.75,0.00027397,4]
[326767828,1715337055272,-500.0,0.00027397,4]
[326767829,1715337055282,-245.775512,0.00027397,7]
[326767830,1715337055292,-500.0,0.00027397,4]
[326767831,1715337055301,-500.0,0.00027397,4]
[326767832,1715337055311,-514.38881971,0.00027397,4]
[326767833,1715337055321,-961.84,0.00027397,4]
[326767834,1715337055331,-826.35,0.00027397,4]
[326767835,1715337055340,-245.775512,0.00027397,7]
[326767836,1715337055350,-245.775512,0.00027397,7]
[326767837,1715337055360,-245.775512,0.00027397,7]
[326767838,1715337055369,-245.775512,0.00027397,7]
[326767839,1715337055379,-905.52,0.00027397,4]
[326767840,1715337055388,-500.0,0.00027397,4]
[326767841,1715337055398,-245.775519,0.00027397,7]
[326767842,1715337055407,-1034.98,0.00027397,4]
[326767843,1715337055417,-500.0,0.00027397,4]
[326767844,1715337055427,-508.9571938,0.00027397,4]
[326767845,1715337055437,-171.218618,0.00027397,7]
[326767846,1715337055447,-171.218618,0.00027397,7]
[326767847,1715337055456,-171.218618,0.00027397,7]
[326767848,1715337055465,-171.218618,0.00027397,7]
[326767849,1715337055475,-171.218618,0.00027397,7]
[326767850,1715337055484,-500.0,0.00027397,4]
[326767851,1715337055493,-500.0,0.00027397,4]
[326767852,1715337055503,-679.12,0.00027397,4]
[326767853,1715337055512,-500.0,0.00027397,4]
[326767854,1715337055521,-171.218618,0.00027397,7]
[326767855,1715337055532,-171.218618,0.00027397,7]
[326767856,1715337055541,-171.218618,0.00027397,7]
[326767857,1715337055550,-500.0,0.00027397,4]
[326767858,1715337055560,-171.218618,0.00027397,7]
[326767859,1715337055570,-515.81712556,0.00027397,4]
[326767860,1715337055580,-848.5,0.00027397,4]
[326767861,1715337055590,-171.218625,0.00027397,7]
[326767862,1715337055600,-776.81,0.00027397,4]
[326767863,1715337055610,-500.0,0.00027397,4]
[326767864,1715337055620,-776.68,0.00027397,4]
[326767865,1715337055630,-524.6,0.00027397,4]
[326767866,1715337055640,-500.0,0.00027397,4]
[326767867,1715337055650,-695.56,0.00027397,4]
[326767868,1715337055660,-500.0,0.00027397,4]
[326767869,1715337055670,-1469.73,0.00027397,4]
[326767870,1715337055680,-500.0,0.00027397,4]
[326767871,1715337055689,-500.0,0.00027397,4]
[326767872,1715337055699,-500.0,0.00027397,4]
[326767873,1715337055709,-810.07,0.00027397,4]
[326767874,1715337055719,-746.59,0.00027397,4]
[326767875,1715337055734,-500.0,0.00027397,4]
[326767876,1715337055743,-500.0,0.00027397,4]
[326767877,1715337055753,-151.0,0.00027397,7]
[326767878,1715337055762,-500.0,0.00027397,4]
[326767879,1715337055773,-1014.99,0.00027397,4]
[326767880,1715337055784,-562.72,0.00027397,4]
[326767881,1715337055794,-500.0,0.00027397,4]
[326767882,1715337055803,-500.0,0.00027397,4]
[326767883,1715337055815,-500.0,0.00027397,4]
[326767884,1715337055827,-2507.9,0.00027397,4]
[326767885,1715337055836,-500.0,0.00027397,4]
[326767886,1715337055847,-1064.33,0.00027397,4]
[326767887,1715337055856,-990.58,0.00027397,4]
[326767888,1715337055866,-500.0,0.00027397,4]
[326767889,1715337055875,-166.70974504,0.00027397,4]
[326767890,1715337055886,-347.08479734,0.00027397,4]
[326767891,1715337055897,-500.0,0.00027397,4]
[326767892,1715337055907,-500.0,0.00027397,4]
[326767893,1715337055916,-1026.13,0.00027397,4]
[326767894,1715337055926,-500.0,0.00027397,4]
[326767895,1715337055936,-1121.14,0.00027397,4]
[326767896,1715337055945,-514.88987641,0.00027397,4]
[326767897,1715337055955,-500.0,0.00027397,4]
[326767898,1715337055965,-500.0,0.00027397,4]
[326767899,1715337055974,-1005.86,0.00027397,4]
[326767900,1715337055985,-509.15281769,0.00027397,4]
[326767901,1715337055994,-500.0,0.00027397,4]
[326767902,1715337056004,-506.96190191,0.00027397,4]
[326767903,1715337056014,-500.0,0.00027397,4]
[326767904,1715337056025,-500.0,0.00027397,4]
[326767905,1715337056034,-1293.75,0.00027397,4]
[326767906,1715337056043,-500.0,0.00027397,4]
[326767907,1715337056053,-1125.13,0.00027397,4]
[326767908,1715337056063,-505.62559514,0.00027397,4]
[326767909,1715337056074,-500.0,0.00027397,4]
[326767910,1715337056083,-743.38,0.00027397,4]
[326767911,1715337056093,-553.35,0.00027397,4]
[326767912,1715337056103,-625.58,0.00027397,4]
[326767913,1715337056112,-1161.74,0.00027397,4]
[326767914,1715337056122,-500.0,0.00027397,4]
[326767915,1715337056132,-519.2895904,0.00027397,4]
[326767916,1715337056142,-1169.31,0.00027397,4]
[326767917,1715337056151,-589.6,0.00027397,4]
[326767918,1715337056161,-500.0,0.00027397,4]
[326767919,1715337056170,-957.1,0.00027397,4]
[326767920,1715337056180,-500.0,0.00027397,4]
[326767921,1715337056191,-596.82,0.00027397,4]
[326767922,1715337056202,-500.0,0.00027397,4]
[326767923,1715337056211,-500.0,0.00027397,4]
[326767924,1715337056220,-616.61,0.00027397,4]
[326767925,1715337056231,-500.0,0.00027397,4]
[326767926,1715337056241,-500.0,0.00027397,4]
[326767927,1715337056251,-500.0,0.00027397,4]
[326767928,1715337056261,-2697.67,0.00027397,4]
[326767929,1715337056270,-500.0,0.00027397,4]
[326767930,1715337056280,-585.31,0.00027397,4]
[326767931,1715337056290,-1056.55,0.00027397,4]
[326767932,1715337056299,-500.0,0.00027397,4]
[326767933,1715337056309,-500.0,0.00027397,4]
[326767934,1715337056318,-1367.23,0.00027397,4]
[326767935,1715337056330,-847.87,0.00027397,4]
[326767936,1715337056340,-1487.76,0.00027397,4]
[326767937,1715337056349,-500.0,0.00027397,4]
[326767938,1715337056358,-500.0,0.00027397,4]
[326767939,1715337056367,-500.0,0.00027397,4]
[326767940,1715337056377,-686.75,0.00027397,4]
[326767941,1715337056386,-722.54,0.00027397,4]
[326767942,1715337056396,-500.0,0.00027397,4]
[326767943,1715337056405,-500.0,0.00027397,4]
[326767944,1715337056415,-500.0,0.00027397,4]
[326767945,1715337056424,-500.0,0.00027397,4]
[326767946,1715337056433,-1158.27,0.00027397,4]
[326767947,1715337056443,-503.41283696,0.00027397,4]
[326767948,1715337056453,-917.05,0.00027397,4]
[326767949,1715337056462,-848.7,0.00027397,4]
[326767950,1715337056473,-500.0,0.00027397,4]
[326767951,1715337056484,-529.04470979,0.00027397,4]
[326767952,1715337056494,-500.0,0.00027397,4]
[326767953,1715337056503,-544.22,0.00027397,4]
[326767954,1715337056512,-500.0,0.00027397,4]
[326767955,1715337056521,-500.0,0.00027397,4]
[326767956,1715337056531,-500.0,0.00027397,4]
[326767957,1715337056541,-655.61,0.00027397,4]
[326767958,1715337056550,-500.0,0.00027397,4]
[326767959,1715337056559,-670.34,0.00027397,4]
[326767960,1715337056569,-500.0,0.00027397,4]
[326767961,1715337056578,-2148.64,0.00027397,4]
[326767962,1715337056588,-500.0,0.00027397,4]
[326767963,1715337056598,-500.0,0.00027397,4]
[326767964,1715337056607,-1370.14,0.00027397,4]
[326767965,1715337056617,-1042.52,0.00027397,4]
[326767966,1715337056627,-500.0,0.00027397,4]
[326767967,1715337056636,-788.99,0.00027397,4]
[326767968,1715337056647,-500.0,0.00027397,4]
[326767969,1715337056657,-1696.4,0.00027397,4]
[326767970,1715337056665,-500.0,0.00027397,4]
[326767971,1715337056675,-1340.14,0.00027397,4]
[326767972,1715337056963,-787.52,0.00027397,4]
[326767973,1715337056986,-500.0,0.00027397,4]
[326767974,1715337056996,-568.8,0.00027397,4]
[326767975,1715337057005,-859.74,0.00027397,4]
[326767976,1715337057014,-500.0,0.00027397,4]
[326767977,1715337057024,-563.38,0.00027397,4]
[326767978,1715337057034,-500.0,0.00027397,4]
[326767979,1715337057043,-500.0,0.00027397,5]
[326767980,1715337057053,-500.0,0.00027397,6]
[326767981,1715337057062,-500.0,0.00027397,7]
[326767982,1715337057072,-500.0,0.00027397,8]
[326767983,1715337057081,-500.0,0.00027397,9]
[326767984,1715337057091,-500.0,0.00027397,10]
[326767985,1715337057100,-500.0,0.00027397,11]
[326767986,1715337057110,-395.80206401,0.00027397,12]
[326767987,1715337057119,-504.37551585,0.00027397,4]
[326767988,1715337057128,-1230.26,0.00027397,4]
[326767989,1715337057137,-500.0,0.00027397,4]
[326767990,1715337057148,-500.0,0.00027397,4]
[326767991,1715337057157,-601.11,0.00027397,4]
[326767992,1715337057167,-3135.76,0.00027397,4]
[326767993,1715337057176,-1223.13,0.00027397,4]
[326767994,1715337057186,-735.03,0.00027397,4]
[326767995,1715337057196,-500.0,0.00027397,4]
[326767996,1715337057205,-500.0,0.00027397,4]
[326767997,1715337057214,-151.0,0.00027397,7]
[326767998,1715337057223,-151.0,0.00027397,7]
[326767999,1715337057233,-151.0,0.00027397,7]
[326768000,1715337057242,-151.0,0.00027397,7]
[326768001,1715337057251,-18157.21,0.00027397,4]
[326768002,1715337057260,-500.0,0.00027397,4]
[326768003,1715337057270,-500.0,0.00027397,4]
[326768004,1715337057280,-1145.39,0.00027397,4]
[326768005,1715337057288,-500.0,0.00027397,4]
[326768006,1715337057298,-2470.51,0.00027397,4]
[326768007,1715337057307,-1044.71,0.00027397,4]
[326768008,1715337057316,-225.533974,0.00027397,7]
[326768009,1715337057326,-225.533974,0.00027397,7]
[326768010,1715337057336,-225.533974,0.00027397,7]
[326768011,1715337057345,-2747.99,0.00027397,4]
[326768012,1715337057355,-225.533974,0.00027397,7]
[326768013,1715337057364,-500.0,0.00027397,4]
[326768014,1715337057374,-500.0,0.00027397,4]
[326768015,1715337057384,-710.06,0.00027397,4]